bitfinex/quotes_BTCUSD_20260311
["timestamp","ask_amount","ask_price","bid_price","bid_amount"]
[1773198752521,0.00022001,69727.0,69719.0,0.07171646]
[1773198753003,0.00022001,69727.0,69719.0,0.07271646]
[1773198753208,0.00022001,69727.0,69720.0,0.0002]
[1773198755209,0.00177204,69730.0,69721.0,0.05175794]
[1773198759969,0.00166001,69734.0,69723.0,0.04876793]
[1773198760167,0.00166001,69734.0,69723.0,0.04887996]
[1773198761756,0.00166001,69734.0,69723.0,0.04987996]
[1773198761939,0.00166001,69734.0,69724.0,0.07171131]
[1773198762143,0.00022001,69730.0,69724.0,0.07171131]
[1773198767780,3.731e-05,69730.0,69724.0,0.07171131]
[1773198768823,3.731e-05,69730.0,69723.0,0.12059127]
[1773198769024,3.731e-05,69730.0,69724.0,0.07171131]
[1773198771329,0.01234891,69737.0,69725.0,0.04888084]
[1773198771534,0.01234891,69737.0,69728.0,0.04888084]
[1773198771914,0.00166001,69740.0,69728.0,0.04888084]
[1773198772447,0.00147733,69740.0,69728.0,0.04888084]
[1773198772807,0.00147733,69740.0,69730.0,0.04935947]
[1773198773235,0.0004,69743.0,69731.0,0.04888084]
[1773198773412,0.00184,69743.0,69732.0,0.12058393]
[1773198775175,0.00184,69743.0,69733.0,0.04888084]
[1773198775377,0.0004,69743.0,69734.0,0.12058187]
[1773198775577,0.06120933,69753.0,69735.0,0.04888084]
[1773198775796,0.00022001,69748.0,69740.0,0.04935947]
[1773198776211,0.04774342,69748.0,69740.0,0.04935947]
[1773198777621,0.04774342,69748.0,69741.0,0.07169383]
[1773198778005,0.00022001,69748.0,69741.0,0.07169383]
[1773198779652,0.00022001,69748.0,69736.0,0.07169897]
[1773198780449,0.00022001,69748.0,69738.0,0.04935947]
[1773198780651,0.00022001,69748.0,69736.0,0.07169897]
[1773198781140,0.04774342,69748.0,69736.0,0.07269897]
[1773198781344,0.047158,69747.0,69736.0,0.001]
[1773198781542,0.07169075,69744.0,69725.0,0.07171029]
[1773198781747,0.07169075,69744.0,69724.0,0.0002]
[1773198781748,0.04752341,69739.0,69724.0,0.07191099]
[1773198781942,0.04752341,69737.0,69724.0,0.07191099]
[1773198783356,0.00144,69736.0,69724.0,0.07191099]
[1773198783683,0.11922184,69737.0,69724.0,0.0002]
[1773198783856,0.00162293,69736.0,69724.0,0.0002]
[1773198784259,0.00018293,69736.0,69724.0,0.0002]
[1773198784506,0.04896341,69735.0,69724.0,0.0002]
[1773198785882,0.12066373,69735.0,69724.0,0.0002]
[1773198786078,0.00144,69735.0,69724.0,0.0002]
[1773198786313,0.07169888,69737.0,69724.0,0.0002]
[1773198786491,0.00144,69734.0,69724.0,0.0002]
[1773198787406,0.00121125,69734.0,69724.0,0.0002]
[1773198787991,0.07188224,69736.0,69724.0,0.0002]
[1773198788196,0.00144,69734.0,69724.0,0.0002]
[1773198788784,0.00125729,69734.0,69724.0,0.0002]
[1773198789849,0.00018293,69733.0,69724.0,0.0002]
[1773198790559,0.00022001,69737.0,69725.0,0.04888084]
[1773198791094,0.00144,69736.0,69727.0,0.04935947]
[1773198791226,0.00144,69736.0,69725.0,0.04888084]
[1773198791767,0.00022001,69737.0,69725.0,0.04888084]
[1773198791966,0.00144,69736.0,69726.0,0.07170926]
[1773198792972,0.07191819,69737.0,69726.0,0.07170926]
[1773198793172,0.04896341,69736.0,69726.0,0.07170926]
[1773198795804,0.04752341,69735.0,69725.0,0.07210926]
[1773198800481,0.04752341,69735.0,69725.0,0.07231266]
[1773198801609,0.11596216,69735.0,69725.0,0.07231266]
[1773198801812,0.04426135,69734.0,69725.0,0.07231266]
[1773198802394,0.11596244,69734.0,69725.0,0.07231266]
[1773198803165,0.04426135,69733.0,69725.0,0.07231266]
[1773198804584,0.11596424,69733.0,69725.0,0.07231266]
[1773198804790,0.11596424,69733.0,69687.0,0.42794224]
[1773198804791,0.04426135,69732.0,69712.0,0.0002]
[1773198805095,0.04426135,69729.0,69712.0,0.0002]
[1773198805298,0.04426135,69727.0,69712.0,0.0002]
[1773198805501,0.04426135,69727.0,69712.0,0.0719235]
[1773198806527,0.07170926,69726.0,69712.0,0.0002]
[1773198806850,0.04426135,69725.0,69712.0,0.0002]
[1773198807417,0.04434325,69725.0,69712.0,0.0002]
[1773198808058,0.04534325,69725.0,69712.0,0.0002]
[1773198808467,0.04434325,69725.0,69712.0,0.0002]
[1773198808667,0.07171131,69724.0,69712.0,0.0002]
[1773198808869,0.04426135,69723.0,69712.0,0.0002]
[1773198809069,0.04426135,69721.0,69712.0,0.0002]
[1773198810786,0.07171543,69720.0,69712.0,0.0002]
[1773198811090,0.11579396,69720.0,69712.0,0.0002]
[1773198811391,0.11561128,69720.0,69712.0,0.0002]
[1773198812170,0.0717146,69721.0,69712.0,0.0002]
[1773198812453,0.0717146,69721.0,69714.0,0.04246387]
[1773198812576,0.07315406,69722.0,69714.0,0.04246387]
[1773198813793,0.001,69720.0,69714.0,0.11418468]
[1773198814003,0.07171451,69721.0,69714.0,0.11418468]
[1773198817462,0.07171451,69721.0,69714.0,0.11438468]
[1773198817824,0.07171451,69721.0,69714.0,0.0002]
[1773198818022,0.04535809,69720.0,69713.0,0.0002]
[1773198818653,0.04535809,69720.0,69705.0,0.07193018]
[1773198818862,0.04535809,69719.0,69708.0,0.0004]
[1773198820236,0.04535809,69717.0,69708.0,0.0004]
[1773198820432,0.00144,69716.0,69708.0,0.07212768]
[1773198820840,0.04679809,69716.0,69708.0,0.07212768]
[1773198822643,0.07172057,69715.0,69708.0,0.07212768]
[1773198822857,0.04485563,69714.0,69708.0,0.07212768]
[1773198824070,0.07172195,69714.0,69708.0,0.07212768]
[1773198824268,0.04535809,69713.0,69708.0,0.07212768]
[1773198825974,0.07315956,69716.0,69708.0,0.07212768]
[1773198826250,0.07315956,69716.0,69708.0,0.07232768]
[1773198827498,0.07415956,69716.0,69708.0,0.07232768]
[1773198828644,0.00144,69715.0,69708.0,0.07232768]
[1773198830602,0.07172263,69713.0,69707.0,0.0002]
[1773198830804,0.07172263,69713.0,69705.0,0.0002]
[1773198830805,0.04205598,69712.0,69705.0,0.0002]
[1773198831685,0.04205598,69712.0,69701.0,0.0002]
[1773198831891,0.04205598,69710.0,69701.0,0.0002]
[1773198832385,0.00144,69709.0,69701.0,0.0002]
[1773198832722,0.00144,69709.0,69703.0,0.07173292]
[1773198832878,0.00144,69708.0,69703.0,0.07173292]
[1773198833261,0.07272368,69712.0,69703.0,0.07173292]
[1773198833528,0.00144,69708.0,69703.0,0.07173292]
[1773198834035,0.00144,69708.0,69700.0,0.07216595]
[1773198834036,0.04187306,69707.0,69700.0,0.00043]
[1773198834385,0.00144,69714.0,69701.0,0.04438372]
[1773198835295,0.07172263,69713.0,69702.0,0.07173395]
[1773198837559,0.11377861,69713.0,69702.0,0.07173395]
[1773198840302,0.00144,69712.0,69702.0,0.07173395]
[1773198840493,0.07172092,69715.0,69703.0,0.04438372]
[1773198840719,0.00144,69712.0,69703.0,0.04438372]
[1773198842535,0.00144,69712.0,69704.0,0.07173189]
[1773198846456,0.00144,69715.0,69705.0,0.04438372]
[1773198846736,0.00022001,69716.0,69706.0,0.04438372]
[1773198846956,0.00144,69717.0,69706.0,0.04438372]
[1773198847168,0.00166001,69723.0,69708.0,0.04438372]
[1773198847401,0.00166001,69723.0,69710.0,0.04941069]
[1773198847601,0.00166001,69723.0,69711.0,0.04438372]
[1773198848058,0.00022001,69723.0,69711.0,0.04438372]
[1773198848227,0.00166001,69723.0,69711.0,0.04438372]
[1773198848610,0.00166001,69723.0,69713.0,0.04438372]
[1773198849597,0.00022001,69723.0,69713.0,0.04438372]
[1773198849809,0.00166001,69723.0,69713.0,0.04438372]
[1773198850374,0.00022001,69723.0,69713.0,0.04438372]
[1773198850589,0.00166001,69723.0,69713.0,0.04438372]
[1773198850989,0.00166001,69723.0,69714.0,0.0717216]
[1773198851406,0.00022001,69723.0,69714.0,0.0717216]
[1773198851628,0.00166001,69723.0,69714.0,0.0717216]
[1773198851921,0.00022001,69723.0,69714.0,0.0717216]
[1773198852118,0.00166001,69723.0,69714.0,0.0717216]
[1773198852320,0.00166001,69723.0,69714.0,0.11610532]
[1773198855500,0.00022001,69723.0,69714.0,0.11610532]
[1773198855691,0.00144,69722.0,69714.0,0.11610532]
[1773198856457,0.00022001,69723.0,69714.0,0.11610532]
[1773198856660,0.00144,69722.0,69714.0,0.11610532]
[1773198857356,0.00022001,69723.0,69714.0,0.11610532]
[1773198857558,0.00144,69722.0,69714.0,0.11610532]
[1773198857958,0.00022001,69723.0,69714.0,0.11610532]
[1773198858164,0.00144,69722.0,69714.0,0.11610532]
[1773198858776,0.00022001,69723.0,69714.0,0.11610532]
[1773198858974,0.00022001,69728.0,69715.0,0.04438372]
[1773198859172,0.00144,69727.0,69715.0,0.04438372]
[1773198859709,0.00033215,69728.0,69716.0,0.07171954]
[1773198859910,0.00177215,69728.0,69717.0,0.03944696]
[1773198860339,0.00144,69727.0,69718.0,0.08885765]
[1773198860677,0.00022001,69721.0,69718.0,0.04941069]
[1773198860900,0.00022001,69721.0,69719.0,0.03944696]
[1773198861663,0.00022001,69721.0,69719.0,0.11116278]
[1773198862108,0.00022001,69721.0,69719.0,0.07171582]
[1773198863780,0.00022001,69721.0,69717.0,0.11116456]
[1773198864740,0.00033215,69728.0,69717.0,0.11116456]
[1773198864891,0.00177215,69728.0,69717.0,0.11116456]
[1773198865326,0.00177215,69728.0,69718.0,0.04941069]
[1773198865534,0.00177215,69728.0,69718.0,0.08885765]
[1773198866440,0.04278788,69727.0,69719.0,0.07171646]
[1773198866620,0.04278788,69727.0,69715.0,0.07171998]
[1773198867144,0.04278788,69727.0,69709.0,0.07172586]
[1773198867851,0.04278788,69727.0,69710.0,0.04941069]
[1773198868668,0.04278788,69725.0,69711.0,0.07172469]
[1773198868961,0.04278788,69725.0,69711.0,0.07184889]
[1773198870738,0.04278788,69723.0,69711.0,0.07184889]
[1773198870937,0.04278788,69721.0,69711.0,0.07184889]
[1773198874191,0.04278788,69720.0,69711.0,0.07184889]
[1773198878807,0.04278788,69720.0,69711.0,0.07204889]
[1773198882651,0.11450369,69720.0,69711.0,0.07204889]
[1773198883599,0.04278788,69720.0,69711.0,0.07204889]
[1773198889984,0.04166897,69719.0,69708.0,0.0006]
[1773198890188,0.04166897,69719.0,69707.0,0.0001549]
[1773198890795,0.04166897,69719.0,69707.0,0.07188329]
[1773198890999,0.07193487,69721.0,69709.0,0.04941069]
[1773198891185,0.07193487,69721.0,69708.0,0.04135325]
[1773198891391,0.04166897,69720.0,69707.0,0.07188329]
[1773198892413,0.07171646,69719.0,69707.0,0.0001549]
[1773198895536,0.00144,69718.0,69710.0,0.04135325]
[1773198895733,0.00144,69719.0,69710.0,0.04135325]
[1773198896117,0.00144,69719.0,69710.0,0.21314043]
[1773198896520,0.00022001,69720.0,69710.0,0.21314043]
[1773198896727,0.00144,69719.0,69710.0,0.21314043]
[1773198896956,0.00033215,69728.0,69714.0,0.17178718]
[1773198897153,0.00033215,69728.0,69715.0,0.04135325]
[1773198897494,0.00033215,69728.0,69718.0,0.11307074]
[1773198900322,0.00033215,69728.0,69718.0,0.07171749]
[1773198900547,0.07203981,69728.0,69718.0,0.07171749]
[1773198900864,0.00033215,69728.0,69718.0,0.07171749]
[1773198901326,0.00033215,69728.0,69716.0,0.07171749]
[1773198902225,0.04188898,69727.0,69716.0,0.07171749]
[1773198903397,0.04188898,69727.0,69710.0,0.22118246]
[1773198903398,0.07192879,69727.0,69711.0,0.24351133]
[1773198903600,0.04166897,69726.0,69711.0,0.07172415]
[1773198906475,0.04166897,69724.0,69711.0,0.07172415]
[1773198906645,0.04166897,69722.0,69711.0,0.07172415]
[1773198908671,0.11338337,69721.0,69709.0,0.07172469]
[1773198908982,0.04166897,69720.0,69711.0,0.0002]
[1773198910689,0.07171646,69719.0,69711.0,0.07192469]
[1773198913181,0.07171646,69719.0,69711.0,0.0002]
[1773198914184,0.07171646,69719.0,69707.0,0.11478087]
[1773198914385,0.07171646,69719.0,69706.0,0.07172906]
[1773198914386,0.04166897,69718.0,69706.0,0.07172906]
[1773198914627,0.04166897,69716.0,69706.0,0.07172906]
[1773198915209,0.04166897,69715.0,69704.0,0.07193135]
[1773198915400,0.04166897,69715.0,69703.0,0.0002]
[1773198915401,0.04939528,69714.0,69698.0,0.0003549]
[1773198915595,0.04166897,69709.0,69688.0,0.07174765]
[1773198915824,0.04166897,69707.0,69688.0,0.38912856]
[1773198916246,0.04166897,69707.0,69688.0,0.43048181]
[1773198916818,0.0001549,69714.0,69691.0,0.04135325]
[1773198917020,0.04310897,69713.0,69691.0,0.04135325]
[1773198917282,0.07172366,69712.0,69693.0,0.04135325]
[1773198917476,0.04166897,69711.0,69693.0,0.04135325]
[1773198917679,0.07316366,69712.0,69693.0,0.04135325]
[1773198917680,0.04939528,69710.0,69693.0,0.04135325]
[1773198917832,0.04266897,69709.0,69692.0,0.38912515]
[1773198918036,0.04266897,69709.0,69692.0,0.31738091]
[1773198918255,0.04166897,69709.0,69692.0,0.31738091]
[1773198919303,0.07172777,69708.0,69693.0,0.07174321]
[1773198919502,0.03897007,69707.0,69693.0,0.07174321]
[1773198919704,0.04041007,69706.0,69693.0,0.07174321]
[1773198920503,0.04001007,69706.0,69693.0,0.07174321]
[1773198921428,0.07173086,69705.0,69693.0,0.07174321]
[1773198923911,0.03897007,69704.0,69693.0,0.07174321]
[1773198924129,0.03897007,69704.0,69694.0,0.31738091]
[1773198925688,0.07277054,69706.0,69694.0,0.31738091]
[1773198925922,0.00104,69706.0,69695.0,0.07174115]
[1773198926296,0.00104,69706.0,69696.0,0.04164466]
[1773198926443,0.00144,69705.0,69696.0,0.04164466]
[1773198926639,0.0717278,69708.0,69697.0,0.31738091]
[1773198926856,0.00144,69707.0,69698.0,0.04939528]
[1773198927070,0.00144,69707.0,69699.0,0.04164466]
[1773198927465,0.00144,69706.0,69699.0,0.04164466]
[1773198927678,0.00144,69706.0,69700.0,0.31738091]
[1773198927926,0.00144,69705.0,69700.0,0.38911649]
[1773198928408,0.07172579,69710.0,69700.0,0.38911649]
[1773198928633,0.00144,69705.0,69700.0,0.38911649]
[1773198928840,0.07172579,69710.0,69700.0,0.38911649]
[1773198929038,0.00144,69709.0,69700.0,0.38911649]
[1773198930134,0.07316682,69709.0,69700.0,0.38911649]
[1773198930733,0.00144,69708.0,69700.0,0.38911649]
[1773198930930,0.00144,69708.0,69700.0,0.31738091]
[1773198931166,0.03897007,69708.0,69700.0,0.31738091]
[1773198931363,0.00144,69707.0,69700.0,0.38911679]
[1773198934058,0.00244,69707.0,69700.0,0.38911679]
[1773198934489,0.07196467,69712.0,69700.0,0.38911679]
[1773198934664,0.00144,69711.0,69701.0,0.04164466]
[1773198935290,0.00144,69711.0,69700.0,0.38911679]
[1773198936933,0.07172572,69710.0,69700.0,0.0721094]
[1773198939742,0.00144,69711.0,69700.0,0.0721094]
[1773198939932,0.00144,69710.0,69702.0,0.04117202]
[1773198941815,0.00144,69710.0,69703.0,0.07173292]
[1773198942026,0.00022001,69714.0,69703.0,0.07173292]
[1773198942229,0.00144,69713.0,69705.0,0.04117202]
[1773198943947,0.00144,69713.0,69706.0,0.07172983]
[1773198947368,0.00144,69713.0,69708.0,0.07172777]
[1773198948471,0.00144,69713.0,69707.0,0.38910884]
[1773198948679,0.00166001,69713.0,69707.0,0.38910884]
[1773198949104,0.00166001,69713.0,69707.0,0.31738091]
[1773198949306,0.04087483,69711.0,69703.0,0.07173276]
[1773198949506,0.04087483,69711.0,69702.0,0.07173328]
[1773198951938,0.07172572,69710.0,69701.0,0.07173436]
[1773198952364,0.07172572,69710.0,69700.0,0.0723092]
[1773198952365,0.04038285,69709.0,69700.0,0.0723092]
[1773198952752,0.00166001,69713.0,69700.0,0.0723092]
[1773198952753,0.00022001,69713.0,69700.0,0.0723092]
[1773198952955,0.00144,69712.0,69700.0,0.0723092]
[1773198953310,0.00144,69711.0,69700.0,0.0723092]
[1773198953969,0.00144,69711.0,69700.0,0.113027]
[1773198955825,0.00166001,69711.0,69700.0,0.113027]
[1773198955982,0.00166001,69711.0,69700.0,0.114027]
[1773198956190,0.00166001,69711.0,69700.0,0.12171701]
[1773198956401,0.00166001,69711.0,69701.0,0.0407178]
[1773198957835,0.00166001,69711.0,69702.0,0.07173395]
[1773198961944,0.07338483,69711.0,69702.0,0.07173395]
[1773198963030,0.07338483,69711.0,69702.0,0.07193395]
[1773198963798,0.04038285,69710.0,69696.0,0.07173807]
[1773198964001,0.04038285,69710.0,69696.0,0.07185028]
[1773198965117,0.11210959,69709.0,69696.0,0.00011221]
[1773198965881,0.25427413,69709.0,69696.0,0.00011221]
[1773198966094,0.11210959,69709.0,69696.0,0.00011221]
[1773198966301,0.25427534,69709.0,69696.0,0.00011221]
[1773198966597,0.11210959,69709.0,69696.0,0.00011221]
[1773198967016,0.25428994,69709.0,69696.0,0.00011221]
[1773198967866,0.21390709,69709.0,69696.0,0.00011221]
[1773198968016,0.04038285,69707.0,69696.0,0.00011221]
[1773198968616,0.04038285,69707.0,69693.0,0.07194321]
[1773198968837,0.04044722,69707.0,69693.0,0.07194321]
[1773198969261,0.07172983,69706.0,69693.0,0.07194321]
[1773198969458,0.00144,69705.0,69693.0,0.07194321]
[1773198969632,0.04182285,69705.0,69693.0,0.07194321]
[1773198970058,0.04038285,69705.0,69693.0,0.07194321]
[1773198970254,0.00144,69704.0,69693.0,0.07194321]
[1773198970455,0.00144,69704.0,69693.0,0.11266101]
[1773198970806,0.04038285,69702.0,69690.0,0.0003641]
[1773198971013,0.04038285,69699.0,69690.0,0.07211002]
[1773198971224,0.04038285,69697.0,69690.0,0.07211002]
[1773198971438,0.04038285,69697.0,69686.0,0.0002]
[1773198971439,0.04038285,69696.0,69686.0,0.07195042]
[1773198972392,0.04038285,69696.0,69687.0,0.0717491]
[1773198972595,0.04038285,69696.0,69688.0,0.07194769]
[1773198972939,0.00144,69695.0,69688.0,0.07194769]
[1773198973286,0.07173909,69698.0,69688.0,0.0002]
[1773198973491,0.00144,69697.0,69688.0,0.0002]
[1773198975356,0.07174012,69696.0,69688.0,0.0002]
[1773198976120,0.00144,69697.0,69688.0,0.0002]
[1773198976313,0.00144,69697.0,69688.0,0.0409178]
[1773198977459,0.00144,69697.0,69688.0,0.0002]
[1773198979895,0.07317927,69697.0,69688.0,0.0002]
[1773198980880,0.11191577,69697.0,69688.0,0.0002]
[1773198981149,0.07317927,69697.0,69688.0,0.0002]
[1773198981355,0.0387365,69696.0,69688.0,0.0002]
[1773198981976,0.0387365,69694.0,69686.0,0.0002]
[1773198982184,0.0388816,69694.0,69686.0,0.0002]
[1773198984013,0.07174321,69693.0,69686.0,0.0002]
[1773198984207,0.07188831,69693.0,69686.0,0.0002]
[1773198988048,0.0001451,69693.0,69686.0,0.0002]
[1773199001176,0.00036511,69693.0,69686.0,0.0002]
[1773199001373,0.07210893,69693.0,69686.0,0.0002]
[1773199001879,0.0664046,69693.0,69686.0,0.0002]
[1773199002074,0.21370658,69694.0,69686.0,0.0002]
[1773199002279,0.14196368,69693.0,69686.0,0.0002]
[1773199002522,0.0717429,69694.0,69686.0,0.0002]
[1773199005565,0.0001828,69693.0,69686.0,0.0002]
[1773199005702,0.0011828,69693.0,69686.0,0.0002]
[1773199005911,0.00166001,69697.0,69687.0,0.05402679]
[1773199005912,0.00022001,69697.0,69687.0,0.05402679]
[1773199006156,0.00144,69696.0,69687.0,0.05402679]
[1773199006949,0.001,69694.0,69687.0,0.05402679]
[1773199007342,0.00144,69696.0,69687.0,0.05402679]
[1773199007980,0.00144,69696.0,69689.0,0.05402679]
[1773199011312,0.00144,69696.0,69690.0,0.0717463]
[1773199011723,0.00144,69696.0,69690.0,0.12577309]
[1773199012731,0.00166001,69696.0,69690.0,0.12577309]
[1773199016164,0.00166001,69696.0,69691.0,0.05402679]
[1773199016934,0.17052323,69705.0,69690.0,0.0717463]
[1773199016935,0.00172438,69707.0,69693.0,0.05402679]
[1773199017206,0.00172438,69707.0,69697.0,0.04942548]
[1773199017414,0.00172438,69707.0,69698.0,0.05402679]
[1773199017961,0.00172438,69707.0,69700.0,0.05402679]
[1773199018580,0.00028438,69707.0,69700.0,0.05402679]
[1773199018817,0.00144,69706.0,69700.0,0.05402679]
[1773199020002,0.00144,69706.0,69700.0,0.12576192]
[1773199021863,0.00166001,69706.0,69700.0,0.12576192]
[1773199024332,0.00166001,69706.0,69700.0,0.07173513]
[1773199024673,0.00166001,69706.0,69701.0,0.05090379]
[1773199024674,0.00144,69706.0,69701.0,0.05090379]
[1773199025565,0.00022001,69711.0,69701.0,0.05090379]
[1773199025913,0.00022001,69711.0,69703.0,0.05290021]
[1773199028097,0.00022001,69711.0,69705.0,0.05289721]
[1773199030072,0.00022001,69711.0,69707.0,0.05294062]
[1773199032307,0.00022001,69711.0,69708.0,0.12470721]
[1773199032892,0.00022001,69711.0,69709.0,0.05297944]
[1773199033880,0.00022001,69711.0,69708.0,0.07172777]
[1773199034302,0.00022001,69711.0,69707.0,0.001]
[1773199034649,0.00022001,69711.0,69707.0,0.0717288]
[1773199035622,0.00022001,69711.0,69707.0,0.12474863]
[1773199035826,0.00022001,69711.0,69708.0,0.05306297]
[1773199037029,0.00022001,69711.0,69709.0,0.07172674]
[1773199039140,0.00166001,69713.0,69709.0,0.07172674]
[1773199039357,0.07171873,69717.0,69710.0,0.05310222]
[1773199039532,0.00144,69712.0,69710.0,0.05310222]
[1773199039874,0.07171873,69717.0,69709.0,0.07172674]
[1773199040071,0.00144,69712.0,69709.0,0.07172674]
[1773199044504,0.00144,69712.0,69708.0,0.07172674]
[1773199044714,0.00144,69712.0,69708.0,0.12639305]
[1773199044917,0.07171873,69717.0,69708.0,0.12639305]
[1773199045055,0.00144,69712.0,69708.0,0.12639305]
[1773199045866,0.07176167,69717.0,69708.0,0.12639305]
[1773199046092,0.00144,69716.0,69708.0,0.12639305]
[1773199046494,0.00144,69715.0,69709.0,0.0002]
[1773199046786,0.00183071,69718.0,69710.0,0.05466631]
[1773199046991,0.00183071,69718.0,69710.0,0.05470925]
[1773199047366,0.00183071,69718.0,69711.0,0.07172469]
[1773199047723,0.00085001,69725.0,69711.0,0.07172469]
[1773199047898,0.00022001,69719.0,69712.0,0.05466631]
[1773199048971,0.00085001,69725.0,69712.0,0.05466631]
[1773199049140,1e-08,69725.0,69716.0,0.05466631]
[1773199049539,1e-08,69725.0,69718.0,0.05466631]
[1773199049739,0.00022001,69730.0,69718.0,0.05466631]
[1773199049939,0.00706,69732.0,69720.0,0.04942548]
[1773199050142,0.00706,69732.0,69721.0,0.05466631]
[1773199051433,0.00562,69732.0,69721.0,0.05466631]
[1773199051684,0.00144,69731.0,69722.0,0.07171337]
[1773199055168,0.00166001,69731.0,69722.0,0.07171337]
[1773199056362,0.00166001,69731.0,69723.0,0.05466631]
[1773199058543,0.00166001,69731.0,69724.0,0.07171131]
[1773199062604,0.00562,69732.0,69725.0,0.05466631]
[1773199062968,0.00562,69732.0,69726.0,0.07170926]
[1773199064109,0.00037171,69735.0,69726.0,0.12637557]
[1773199064311,0.00144,69734.0,69726.0,0.07170926]
[1773199064516,0.00144,69734.0,69726.0,0.12637557]
[1773199065474,0.07169395,69741.0,69726.0,0.12637557]
[1773199065475,0.00023,69750.0,69727.0,0.05466631]
[1773199065613,0.0004,69743.0,69731.0,0.05466631]
[1773199066215,0.00144,69742.0,69731.0,0.05466631]
[1773199066415,0.00144,69742.0,69725.0,0.07170823]
[1773199066638,0.00144,69742.0,69724.0,0.07171131]
[1773199066849,0.04942548,69740.0,69722.0,0.07213194]
[1773199067247,0.07169589,69739.0,69722.0,0.07213194]
[1773199068172,0.02832883,69738.0,69722.0,0.07213194]
[1773199069288,0.07169795,69737.0,69725.0,0.001]
[1773199069434,0.04942548,69735.0,69712.0,0.12278253]
[1773199069799,0.00144,69736.0,69712.0,0.05105989]
[1773199069800,0.04942548,69730.0,69712.0,0.05105989]
[1773199069946,0.00144,69729.0,69712.0,0.05105989]
[1773199072266,0.00144,69729.0,69713.0,0.07172263]
[1773199072470,0.07314679,69729.0,69713.0,0.07172263]
[1773199073248,0.07414679,69729.0,69713.0,0.07172263]
[1773199073461,0.07414679,69729.0,69712.0,0.07172263]
[1773199073868,0.07314679,69729.0,69711.0,0.0001964]
[1773199074398,0.07314679,69729.0,69712.0,0.0002]
[1773199074606,0.07414679,69729.0,69712.0,0.0002]
[1773199075829,0.07314679,69729.0,69712.0,0.0002]
[1773199077015,0.07414679,69729.0,69712.0,0.0002]
[1773199077541,0.07314679,69729.0,69712.0,0.0002]
[1773199077723,0.07414679,69729.0,69712.0,0.0002]
[1773199078945,0.07314679,69729.0,69712.0,0.0002]
[1773199079249,0.07414679,69729.0,69712.0,0.0002]
[1773199081147,0.0717144,69721.0,69699.0,0.05090379]
[1773199081347,0.0717144,69721.0,69690.0,0.04939748]
[1773199081348,0.02702328,69709.0,69689.0,0.03821756]
[1773199081575,0.02702328,69707.0,69689.0,0.10996468]
[1773199082362,0.02702328,69707.0,69689.0,0.11000762]
[1773199083204,0.07172983,69706.0,69689.0,0.10981122]
[1773199083614,0.02725524,69705.0,69689.0,0.10981122]
[1773199084386,0.02725524,69705.0,69689.0,0.0380641]
[1773199084732,0.02725524,69705.0,69681.0,0.0002]
[1773199084733,0.04939748,69700.0,69681.0,0.11107201]
[1773199085024,0.00144,69699.0,69689.0,0.0002]
[1773199085534,0.07173806,69698.0,69689.0,0.0002]
[1773199087607,0.07273806,69698.0,69689.0,0.0002]
[1773199088885,0.07173806,69698.0,69689.0,0.0002]
[1773199089075,0.07273806,69698.0,69689.0,0.0002]
[1773199089654,0.07173806,69698.0,69689.0,0.0002]
[1773199089855,0.07273806,69698.0,69689.0,0.0002]
[1773199090863,0.07255506,69698.0,69689.0,0.0002]
[1773199091586,0.07255506,69698.0,69683.0,1e-08]
[1773199091786,0.04939748,69693.0,69683.0,1e-08]
[1773199092087,0.00144,69692.0,69683.0,1e-08]
[1773199092492,0.00144,69692.0,69673.0,0.0002]
[1773199092689,0.10540619,69689.0,69667.0,0.10499312]
[1773199093041,0.07355506,69698.0,69671.0,0.03825541]
[1773199093243,0.00144,69697.0,69689.0,0.0002]
[1773199093441,0.001,69692.0,69689.0,0.0002]
[1773199093657,0.07318527,69691.0,69689.0,0.0002]
[1773199093920,0.07174254,69694.0,69689.0,0.0002]
[1773199094041,0.00144,69690.0,69689.0,0.0002]
[1773199095605,0.07174394,69693.0,69671.0,0.07176587]
[1773199095808,0.07174394,69693.0,69671.0,0.03802116]
[1773199095809,0.04939748,69690.0,69671.0,0.03802116]
[1773199096614,0.04939748,69690.0,69676.0,0.03802116]
[1773199096819,0.04939748,69690.0,69670.0,0.10978767]
[1773199097450,0.04939748,69690.0,69676.0,0.03802116]
[1773199097661,0.07174733,69689.0,69676.0,0.03802116]
[1773199097808,0.07083209,69689.0,69676.0,0.03802116]
[1773199098015,0.00144,69688.0,69676.0,0.03802116]
[1773199098258,0.00144,69688.0,69677.0,0.03802116]
[1773199098818,0.00104,69688.0,69677.0,0.03802116]
[1773199099059,0.07083209,69689.0,69677.0,0.03802116]
[1773199099290,0.00144,69688.0,69677.0,0.03802116]
[1773199099886,0.07174939,69687.0,69677.0,0.03802116]
[1773199101992,0.07156632,69687.0,69677.0,0.03802116]
[1773199103850,0.07173889,69698.0,69677.0,0.07175893]
[1773199103966,0.07173704,69699.0,69682.0,0.03617726]
[1773199103967,0.00144,69697.0,69682.0,0.03617726]
[1773199106126,0.07173936,69697.0,69684.0,0.03587081]
[1773199106335,0.00144,69696.0,69684.0,0.03587081]
[1773199107297,0.00144,69696.0,69676.0,0.07195873]
[1773199107298,0.00144,69696.0,69676.0,0.10783141]
[1773199107654,0.00144,69696.0,69677.0,0.03587081]
[1773199108214,0.07174115,69695.0,69678.0,0.035575]
[1773199109034,0.07155811,69695.0,69678.0,0.035575]
[1773199110045,0.04968112,69700.0,69677.0,0.07175922]
[1773199110046,0.00028364,69700.0,69680.0,0.04939748]
[1773199110261,0.07317746,69699.0,69683.0,0.03527928]
[1773199110447,0.00144,69698.0,69683.0,0.03527928]
[1773199111471,0.00022001,69695.0,69683.0,0.03527928]
[1773199112262,0.00022001,69695.0,69684.0,0.07175248]
[1773199112490,0.00022001,69695.0,69685.0,0.03498962]
[1773199114499,0.00022001,69695.0,69686.0,0.10645515]
[1773199115510,0.00022001,69695.0,69687.0,0.03470473]
[1773199116270,0.07196168,69695.0,69687.0,0.03470473]
[1773199116492,0.07196168,69695.0,69686.0,0.002]
[1773199117106,0.07196168,69695.0,69686.0,0.001]
[1773199117332,0.07196168,69695.0,69687.0,0.001]
[1773199117500,0.07196168,69695.0,69684.0,0.07175189]
[1773199117702,0.07196168,69695.0,69682.0,0.0344251]
[1773199118008,0.07196168,69695.0,69687.0,0.001]
[1773199118406,0.07196168,69695.0,69685.0,0.03415058]
[1773199118945,0.07196168,69695.0,69685.0,0.10590153]
[1773199119148,0.07196168,69695.0,69685.0,0.03415058]
[1773199119895,0.07196168,69695.0,69681.0,0.07175359]
[1773199120097,0.07196168,69695.0,69681.0,0.10567343]
[1773199120301,0.07196168,69695.0,69682.0,0.03391984]
[1773199122850,0.07196168,69695.0,69680.0,0.04939748]
[1773199122851,0.07196168,69695.0,69684.0,0.03391984]